Cogmind - Beta 17.1 @@@ ROGUE MODE // 2026.09.05 @ 03:07:01 Player: Kite Result: Self-destructed Performance ------------- Evolutions (2) 1000 Regions Visited (9) 1800 Robots Destroyed (124) 620 Value Destroyed (3879) 3879 Prototype IDs (2) 40 Alien Tech Used (0) 0 Bonus (1032) 1032 TOTAL SCORE: 8371 Bonus ------- High Alert Combat Kills 21 Follower Combat Kills 111 Entered Garrisons 400 Used RIF Installer 500 Cogmind --------- Core Integrity 94/550 Matter 280/300 Energy 93/100 System Corruption 15% Temperature Cool (0) Movement Treading (240) Ox2 Location -8/Garrison Parts ------- > --- POWER (1) -------- (None) > --- PROPULSION (4) --- Light Treads Light Treads > --- UTILITY (3) ------ Huge Storage Unit Relay Coupler [Sentry] (11) > --- WEAPON (3) ------- Katana Axe Axe > --- INVENTORY (25) --- Light Treads Light Treads Light Treads Light Treads Huge Storage Unit Seismic Detector Medium Armor Plating System Shield Relay Coupler [Sentry] (18) Relay Coupler [Specialist] (21) Missile Launcher Improved Datajack Improved Datajack Maul Heavy Hammer Heavy Hammer Great Maul Axe Peak State ------------ > --- POWER ------------ Nuclear Core > --- PROPULSION ------- Armored Wheel Armored Wheel Armored Wheel Armored Wheel > --- UTILITY ---------- Humpback Hardened Light Armor Plating > --- WEAPON ----------- Heavy Assault Rifle Improved Assault Rifle High-powered Shotgun > --- INVENTORY -------- Light Treads Light Treads Light Treads Light Treads Light Treads Light Treads Light Treads Light Treads Light Treads Light Treads Light Treads Light Treads Wheel Compact Wheel Huge Storage Unit Huge Storage Unit Seismic Detector Particle Charger Particle Charger Medium Armor Plating Medium Armor Plating Medium Armor Plating Medium Armor Plating Medium Armor Plating Medium Armor Plating Hardlight Generator System Shield Mini Grenade Launcher Mini Grenade Launcher Plasma Cutter Maul Heavy Hammer Heavy Hammer Heavy Mace Katana [Rating: 28] Favorites ----------- Power Light Ion Engine Engine Light Ion Engine Power Core Nuclear Core Propulsion Light Treads Treads Light Treads Leg Aluminum Leg Wheel Wheel Utility Medium Armor Plating Device Seismic Detector Storage Humpback Hackware Relay Coupler [Sentry] Protection Medium Armor Plating Weapon Improved Assault Rifle Energy Gun Beam Rifle Energy Cannon Beam Cannon Ballistic Gun Improved Assault Rifle Launcher Mini Grenade Launcher Impact Weapon Maul Slashing Weapon Katana Special Melee Weapon Improved Datajack Build | -11 -10 -9 -9 -9 -8 -8 -8 -8 -8 ------- Run | Yrd Mat Mat Min Exi Min Mat Gar Mat Gar Slots Evolved 4 | . . 2 . . . 2 . . . Power . | . . . . . . . . . . Propulsion 2 | . . 1 . . . 1 . . . Utility 1 | . . . . . . 1 . . . Weapon 1 | . . 1 . . . . . . . Parts Attached 87 | 6 6 14 . 2 4 22 9 19 5 Power 9 | 1 1 1 . . 1 2 1 2 . Engine 7 | 1 1 1 . . . 1 1 2 . Core 2 | . . . . . 1 1 . . . Reactor . | . . . . . . . . . . Propulsion 34 | 2 2 5 . 2 3 8 4 5 3 Treads 19 | 2 . 3 . 2 . . 4 5 3 Leg 4 | . 2 2 . . . . . . . Wheel 11 | . . . . . 3 8 . . . Hover . | . . . . . . . . . . Flight . | . . . . . . . . . . Utility 19 | 1 1 2 . . . 5 2 8 . Device 1 | . . . . . . . 1 . . Storage 6 | 1 1 1 . . . 2 . 1 . Processor . | . . . . . . . . . . Hackware 3 | . . . . . . . . 3 . Protection 9 | . . 1 . . . 3 1 4 . Artifact . | . . . . . . . . . . Weapon 25 | 2 2 6 . . . 7 2 4 2 Energy Gun 3 | . . . . . . 3 . . . Energy Cannon 3 | . . 3 . . . . . . . Ballistic Gun 8 | 2 2 3 . . . 1 . . . Ballistic Cannon . | . . . . . . . . . . Launcher 1 | . . . . . . . 1 . . Special Weapon . | . . . . . . . . . . Impact Weapon 5 | . . . . . . 3 . 2 . Slashing Weapon 3 | . . . . . . . 1 . 2 Piercing Weapon . | . . . . . . . . . . Special Melee Weapon 2 | . . . . . . . . 2 . Unidentified Prototypes 2 | . . 2 . . . . . . . Corrupted Parts 1 | . . . . . . . . 1 . System Corruption 3 | . . . . . . . . 3 . Parts Lost 32 | . 4 3 . . 1 9 3 4 8 Power 7 | . 1 . . . 1 1 2 1 1 Propulsion 11 | . 1 1 . . . 2 1 2 4 Utility 4 | . . . . . . 1 . 1 2 Weapon 10 | . 2 2 . . . 5 . . 1 Highest Loss Streak 8 | . 2 3 . . 1 2 2 2 8 To Critical Strikes . | . . . . . . . . . . Average Backups 20 | 1 5 14 20 19 19 30 28 24 21 Power . | . . . . . . . . . . Propulsion 8 | . 4 8 10 9 8 11 10 8 6 Utility 6 | . . 2 4 5 6 11 12 9 6 Weapon 3 | . 1 2 4 4 4 6 3 5 6 Tool/Special . | . . . . . . . . . . Unused Backups 32 | . 2 4 1 . 2 5 4 6 8 Power . | . . . . . . . . . . Propulsion 11 | . . 3 . . 1 1 2 1 3 Utility 15 | . 2 1 . . 1 4 1 4 2 Weapon 4 | . . . 1 . . . 1 . 2 Tool/Special 2 | . . . . . . . . 1 1 Average Slot Usage (%) 89 | . 84 83 100 100 97 86 90 94 90 Engine 6 | . 13 7 11 11 1 . 2 5 7 Core 2 | . . . . . 7 7 1 . . Treads 14 | . 5 8 33 33 10 . 22 34 28 Leg 7 | . 22 18 . . . . . . . Wheel 9 | . . . . . 22 35 13 . . Device 1 | . . . . . . . 5 5 . Storage 10 | . 14 11 11 11 11 9 9 9 9 Protection 6 | . . 7 11 11 11 7 8 8 9 Energy Gun 1 | . . . . . . 4 . . . Ballistic Gun 19 | . 27 29 33 33 33 20 . . . Impact Weapon 5 | . . . . . . 1 23 16 14 Slashing Weapon 2 | . . . . . . . 1 9 12 Peak Build Rating 28 | 6 7 16 16 16 18 28 26 26 25 Average Rating 16 | 4 6 12 16 16 17 23 20 22 24 On Entrance 14 | . 6 7 16 16 16 18 26 20 24 Avg Prop Armor Cover (%) . | . . . . . . . . . . Naked Turns . | . . . . . . . . . . Heaviest Build 223 | 11 31 55 55 55 57 223 223 102 99 Greatest Support 80 | 40 40 60 60 60 60 54 80 80 80 Greatest Overweight (x) 7 | . 1 1 . . 5 7 6 1 1 Average Overweight (x) 1 | . . . . . . 4 2 1 1 Largest Inventory Capacity 35 | 8 15 20 20 20 20 35 35 25 25 Average Capacity 22 | 6 11 16 20 20 20 34 28 25 25 Most Carried 35 | 4 12 20 20 20 20 35 35 25 23 Average Carried 20 | 1 5 14 20 19 19 30 28 24 21 Final Capacity 35 | 8 15 20 20 20 20 35 25 25 25 Final Carried 34 | 4 12 20 20 20 20 34 25 22 18 Class Distribution -------------------- 23% | Mutant 21% | Scavenger-Mutant 19% | Scavenger-Tank 15% | Hauler-Tank 6% | Hauler-Mutant 4% | Gunner 4% | Tank 3% | Hauler-Gunner Dominant Class ---------------- Mutant | -10/Materials Scavenger-Tank | -9/Materials Scavenger-Tank | -9/Mines Scavenger-Tank | -9/Exiles Scavenger-Tank | -8/Mines Hauler-Tank | -8/Materials Scavenger-Mutant | -8/Garrison Scavenger-Mutant | -8/Materials Scavenger-Mutant | -8/Garrison Resources | -11 -10 -9 -9 -9 -8 -8 -8 -8 -8 ----------- Run | Yrd Mat Mat Min Exi Min Mat Gar Mat Gar Matter Collected 2565 | 81 345 803 10 . 107 778 92 349 . Remotely . | . . . . . . . . . . Salvage Created 4711 | . 415 1561 . . 431 1535 200 569 . Parts 259 | . 33 90 . . 26 81 11 18 . Haulers Intercepted 9 | . 2 4 . . . 2 . 1 . Recyclers Shooed 1 | . . 1 . . . . . . . Parts Field Recycled . | . . . . . . . . . . Retrieved Matter . | . . . . . . . . . . Parts Self-Destructed . | . . . . . . . . . . Prevented . | . . . . . . . . . . Parts Restored . | . . . . . . . . . . Kills | -11 -10 -9 -9 -9 -8 -8 -8 -8 -8 ------- Run | Yrd Mat Mat Min Exi Min Mat Gar Mat Gar Combat Hostiles Destroyed 93 | . 12 28 . . 6 28 8 11 . Melee 9 | . . . . . . 2 2 5 . Guns 66 | . 12 22 . . 6 26 . . . Cannons 5 | . . 5 . . . . . . . AOE 2 | . . . . . . . 2 . . Classes Destroyed 15 | . 4 7 . . 1 1 1 1 . Worker 7 | . . 2 . . 2 2 . 1 . Builder 5 | . . 2 . . 2 1 . . . Tunneler 1 | . . . . . 1 . . . . Hauler 9 | . 2 4 . . . 2 . 1 . Recycler 6 | . . 4 . . . 2 . . . Operator 1 | . . 1 . . . . . . . Watcher 2 | . 1 . . . . . . 1 . Swarmer 27 | . 7 12 . . . 3 3 2 . Cutter 2 | . . . . . . . 2 . . Grunt 43 | . 5 9 . . 5 16 2 6 . Brawler 3 | . . 1 . . 1 1 . . . Duelist 1 | . . 1 . . . . . . . Sentry 14 | . . 5 . . . 7 1 1 . Specialist 2 | . . . . . . . . 2 . Hunter 1 | . . . . . . 1 . . . Best Kill Streak 8 | . 6 8 . . 8 5 2 5 . Combat Bots Only 6 | . 6 5 . . 3 4 2 5 . Max Kills in Single Turn 2 | . 1 2 . . 2 2 1 1 . Gunslinging 1 | . . 1 . . . 1 . . . Exploded 1 | . . . . . . . 1 . . Melee 1 | . . . . . . 1 1 1 . Uniques/NPCs Destroyed . | . . . . . . . . . . Combat | -11 -10 -9 -9 -9 -8 -8 -8 -8 -8 -------- Run | Yrd Mat Mat Min Exi Min Mat Gar Mat Gar Hostile Shots Fired 632 | . 117 113 . . 25 132 60 100 85 Missed 164 | . 39 27 . . 6 30 21 22 19 Hits 468 | . 78 86 . . 19 102 39 78 66 Melee 3 | . . . . . . 3 . . . Projectile 465 | . 78 86 . . 19 99 39 78 66 AOE 1 | . . . . . . . 1 . . Critical Strikes 14 | . . 4 . . 2 6 . . 2 Damage Taken 6256 | . 694 978 . . 315 1585 466 1223 995 Core 882 | . 171 192 . . 63 186 27 95 148 Absorbed by Shields . | . . . . . . . . . . Core Remaining (%) 55 | 100 31 . . . 36 . . . . Volleys Fired 237 | . 56 86 . . 17 76 2 . . Largest 3 | . 2 3 . . 3 3 1 . . Hottest 146 | . 40 140 . . 69 146 30 . . Shots Fired 606 | . 109 241 . . 51 203 2 . . Gun 571 | . 109 208 . . 51 203 . . . Cannon 33 | . . 33 . . . . . . . Launcher 2 | . . . . . . . 2 . . Special . | . . . . . . . . . . Kinetic 525 | . 109 208 . . 51 157 . . . Thermal 79 | . . 33 . . . 46 . . . Explosive 2 | . . . . . . . 2 . . Electromagnetic . | . . . . . . . . . . Robot Hit Streak 14 | . 7 13 . . 14 14 . . . Robot Miss Streak 4 | . 4 3 . . 2 4 . . . Penetration Max . | . . . . . . . . . . Secondary Targets 10 | . . 6 . . . 4 . . . Max Gunslinging Chain 1 | . . 1 . . . 1 . . . Shots Hit Robots 458 | . 60 133 . . 36 148 18 47 16 Core Hits 196 | . 30 61 . . 19 74 5 6 1 Critical Kills 5 | . . 1 . . 1 2 . 1 . Critical Parts Destroyed 10 | . . . . . . . 3 6 1 Critical Strikes 23 | . . 1 . . 1 7 3 8 3 Burn 5 | . . . . . . 5 . . . Meltdown 1 | . . 1 . . . . . . . Destroy 2 | . . . . . 1 1 . . . Smash 12 | . . . . . . 1 3 7 1 Sever 3 | . . . . . . . . 1 2 Melee Attacks 125 | . . . . . . 9 26 68 22 Impact 84 | . . . . . . 9 23 44 8 Slashing 33 | . . . . . . . 3 16 14 Piercing . | . . . . . . . . . . Sneak Attacks 7 | . . . . . . . . 7 . Combat Hostiles . | . . . . . . . . . . Follow-up Attacks 29 | . . . . . . 3 6 12 8 Damage Inflicted 9093 | . 670 2004 . . 605 2579 820 1756 659 Guns 5357 | . 652 1758 . . 605 2342 . . . Cannons 246 | . . 246 . . . . . . . Explosions 112 | . . . . . . . 112 . . Melee 3360 | . . . . . . 237 708 1756 659 Ramming 18 | . 18 . . . . . . . . Kinetic 4852 | . 652 1758 . . 605 1837 . . . Thermal 751 | . . 246 . . . 505 . . . Explosive 112 | . . . . . . . 112 . . Electromagnetic . | . . . . . . . . . . Impact 2470 | . . . . . . 237 651 1312 270 Slashing 890 | . . . . . . . 57 444 389 Piercing . | . . . . . . . . . . Highest Corruption 14 | . 2 . . . . . . 3 14 Average Corruption 2 | . 1 . . . . . . 3 4 Corruption Purged . | . . . . . . . . . . Corruption Blocked . | . . . . . . . . . . Effects 12 | . 3 . . . . . . 7 2 Message Errors 4 | . 1 . . . . . . 3 . Matter Fused 1 | . . . . . . . . 1 . Heat Flow Errors 3 | . . . . . . . . 2 1 Energy Discharges 2 | . 2 . . . . . . . . Parts Rejected 1 | . . . . . . . . 1 . Data Loss (major) 1 | . . . . . . . . . 1 Overload Shots . | . . . . . . . . . . Overflow Damage 656 | . . . . . . 9 198 411 38 Projectiles . | . . . . . . . . . . Explosions . | . . . . . . . . . . Melee 656 | . . . . . . 9 198 411 38 Knockbacks 10 | . . . . . . 1 2 6 1 Impact 10 | . . . . . . 1 2 6 1 Kinetic . | . . . . . . . . . . Secondary . | . . . . . . . . . . Self-Inflicted Damage . | . . . . . . . . . . Shots . | . . . . . . . . . . Rammed 2 | . 2 . . . . . . . . Targets Rammed 5 | . 5 . . . . . . . . Kicked 3 | . 3 . . . . . . . . Crushed . | . . . . . . . . . . Highest Temperature 540 | . 6 187 . . 114 540 . 126 177 Average Temperature 77 | . 5 46 . . 59 106 . 62 95 Received Heat Transfer 2031 | . 150 279 . . 207 774 126 495 . Effects 4 | . . . . . . 4 . . . Shutdowns 2 | . . . . . . 2 . . . Matter Decay 2 | . . . . . . 2 . . . Siege Activations . | . . . . . . . . . . Martial Activations . | . . . . . . . . . . Shielding Activations . | . . . . . . . . . . Robots Disrupted . | . . . . . . . . . . Combat Hostiles . | . . . . . . . . . . Robots Corrupted 11 | . . . . . . . 4 7 . Combat Hostiles 10 | . . . . . . . 4 6 . Parts Fried 10 | . . . . . . . 2 8 . Impact Corruptions 27 | . . . . . . 1 8 17 1 Robots Melted 1 | . . 1 . . . . . . . Combat Hostiles 1 | . . 1 . . . . . . . Parts Melted 4 | . . 1 . . . 3 . . . Heat Transferred 2146 | . . 518 . . . 1628 . . . Parts Sabotaged . | . . . . . . . . . . Parts Stolen . | . . . . . . . . . . Parts Stripped . | . . . . . . . . . . Power Chain Reactions . | . . . . . . . . . . Alert | -11 -10 -9 -9 -9 -8 -8 -8 -8 -8 ------- Run | Yrd Mat Mat Min Exi Min Mat Gar Mat Gar Maximum Alert Level 2 | . . 1 . . . 1 2 1 . Low Security (%) 73 | 100 100 27 100 . 100 89 . 86 100 Level 1 21 | . . 72 . . . 10 50 13 . Level 2 4 | . . . . . . . 49 . . Level 3 . | . . . . . . . . . . Level 4 . | . . . . . . . . . . Level 5 . | . . . . . . . . . . High Security . | . . . . . . . . . . Max Security . | . . . . . . . . . . Peak Influence 533 | . 181 389 130 . 110 333 533 259 180 Initial 259 | . . 1 130 . . 27 213 259 102 Average 139 | . 61 254 55 . 58 94 383 112 131 Influence Increases 3196 | . 420 813 . . 195 851 350 489 78 Destroy 0b10 Robot/C 1920 | . 240 560 . . 120 560 160 280 . Destroy 0b10 Robot/NC 165 | . 15 65 . . 25 35 . 25 . Destroy Leader 454 | . 56 128 . . 20 164 20 66 . Allied During Kill 7 | . . . . . . . . 7 . Successful Hack 91 | . 34 13 . . . 11 . 5 28 Select Force Hacks 60 | . 30 30 . . . . . . . Disable Machine 15 | . 15 . . . . . . . . Anti-Garrison Action 150 | . . . . . . . 100 . 50 Destroy Structure 19 | . . 2 . . . 6 10 1 . Lose Combat Pursuer 315 | . 30 15 . . 30 75 60 105 . Influence Decreases 3096 | . 414 484 335 . 125 592 146 864 136 Entered New Map 699 | . . 5 205 . . 43 116 274 56 Time Decay 2002 | . 374 449 130 . 120 459 . 470 . Lost Part 315 | . 40 30 . . 5 90 30 40 80 Lost Ally 80 | . . . . . . . . 80 . Squads Dispatched 18 | . 4 4 . . . 6 . 4 . Investigation 8 | . 2 2 . . . 3 . 1 . Extermination . | . . . . . . . . . . Reinforcement 9 | . 2 2 . . . 2 . 3 . Assault . | . . . . . . . . . . Garrison 1 | . . . . . . 1 . . . Intercept . | . . . . . . . . . . Searches Triggered . | . . . . . . . . . . Construction Impeded . | . . . . . . . . . . Haulers Reinforced . | . . . . . . . . . . Active Scanning Responses . | . . . . . . . . . . Cargo Convoy Interrupts . | . . . . . . . . . . Stealth | -11 -10 -9 -9 -9 -8 -8 -8 -8 -8 --------- Run | Yrd Mat Mat Min Exi Min Mat Gar Mat Gar Distress Signals 12 | . 3 2 . . 1 5 . 1 . Communications Jammed . | . . . . . . . . . . Distress Signals . | . . . . . . . . . . Times Spotted 157 | . 30 36 . . 7 41 9 31 3 Peak Tracking Total 10 | . 10 6 . . 3 5 5 7 3 Tactical Retreats 16 | . 1 1 . . 1 5 3 5 . Traps | -11 -10 -9 -9 -9 -8 -8 -8 -8 -8 ------- Run | Yrd Mat Mat Min Exi Min Mat Gar Mat Gar Traps Triggered 14 | . 4 1 . . . 1 3 1 4 Indirectly . | . . . . . . . . . . Trap Hack Attempts . | . . . . . . . . . . Triggered . | . . . . . . . . . . Disarmed . | . . . . . . . . . . Reprogrammed . | . . . . . . . . . . Reused . | . . . . . . . . . . Traps Extracted . | . . . . . . . . . . Installed . | . . . . . . . . . . Triggered . | . . . . . . . . . . Machines | -11 -10 -9 -9 -9 -8 -8 -8 -8 -8 ---------- Run | Yrd Mat Mat Min Exi Min Mat Gar Mat Gar Machines Disabled 4 | . 1 . . . . . 2 . 1 Max in Single Turn 1 | . 1 . . . . . 1 . 1 Garrison Relay 3 | . . . . . . . 2 . 1 Machines Repaired . | . . . . . . . . . . Machines Dismantled . | . . . . . . . . . . Machines Sabotaged . | . . . . . . . . . . Overloaded Fab Kills . | . . . . . . . . . . Hacking | -11 -10 -9 -9 -9 -8 -8 -8 -8 -8 --------- Run | Yrd Mat Mat Min Exi Min Mat Gar Mat Gar Machines Accessed 28 | . 6 4 . 1 . 10 1 5 1 Terminals 21 | . 5 3 . . . 7 1 4 1 Fabricators . | . . . . . . . . . . Repair Stations . | . . . . . . . . . . Recycling Units 3 | . 1 1 . . . 1 . . . Scanalyzers 1 | . . . . . . 1 . . . Garrison Access 2 | . . . . . . 1 . 1 . Total Hacks 70 | . 15 8 . 4 . 27 1 12 3 Successful 33 | . 7 4 . 4 . 12 . 4 2 Failed 37 | . 8 4 . . . 15 1 8 1 Catastrophic 12 | . 3 2 . . . 7 . . . Database Lockouts . | . . . . . . . . . . Manual 54 | . 15 8 . . . 18 . 11 2 Terminals 55 | . 14 7 . . . 19 1 11 3 Fabricators . | . . . . . . . . . . Repair Stations . | . . . . . . . . . . Recycling Units 3 | . 1 1 . . . 1 . . . Scanalyzers 6 | . . . . . . 6 . . . Garrison Access 2 | . . . . . . 1 . 1 . Terminal Hacks 15 | . 5 2 . 4 . 1 . 2 1 Record 4 | . . . . 4 . . . . . Part Schematic 2 | . 2 . . . . . . . . Branch Access Points 2 | . . 1 . . . 1 . . . Transport Status 1 | . 1 . . . . . . . . Hauler Manifests 2 | . 1 1 . . . . . . . Registered Components 1 | . 1 . . . . . . . . Zone Layout 2 | . . . . . . . . 2 . Patrol Navigation 1 | . . . . . . . . . 1 Fabricator Hacks . | . . . . . . . . . . Repair Station Hacks . | . . . . . . . . . . Recycling Unit Hacks . | . . . . . . . . . . Scanalyzer 6 | . . . . . . 6 . . . Insert Component 2 | . . . . . . 2 . . . Analyze 2 | . . . . . . 2 . . . Retrieve Study 2 | . . . . . . 2 . . . Garrison Access Hacks 2 | . . . . . . 1 . 1 . Unlock Access 2 | . . . . . . 1 . 1 . Unauthorized Hacks 10 | . 2 2 . . . 4 . 1 1 Terminals 8 | . 1 1 . . . 4 . 1 1 Botnet 8 | . 1 1 . . . 4 . 1 1 Fabricators . | . . . . . . . . . . Repair Stations . | . . . . . . . . . . Recycling Units 2 | . 1 1 . . . . . . . Tunnel 2 | . 1 1 . . . . . . . Scanalyzers . | . . . . . . . . . . Garrison Access . | . . . . . . . . . . Data Cores Recovered . | . . . . . . . . . . Used . | . . . . . . . . . . Hacking Detections 18 | . 4 2 . . . 7 1 4 . Full Trace Events 6 | . 1 1 . . . 3 . 1 . Feedback Events . | . . . . . . . . . . Feedback Blocked . | . . . . . . . . . . Robot Schematics Acquired . | . . . . . . . . . . Robots Built . | . . . . . . . . . . Authchips . | . . . . . . . . . . Time . | . . . . . . . . . . Total Robot Build Rating . | . . . . . . . . . . Part Schematics Acquired 4 | . 2 . . . . 2 . . . Parts Built . | . . . . . . . . . . Authchips . | . . . . . . . . . . Time . | . . . . . . . . . . Total Part Build Rating . | . . . . . . . . . . Part Studies Acquired 2 | . . . . . . 2 . . . Parts Repaired . | . . . . . . . . . . Time . | . . . . . . . . . . Parts Recycled . | . . . . . . . . . . Recycled Matter . | . . . . . . . . . . Retrieved Matter . | . . . . . . . . . . Retrieved Components . | . . . . . . . . . . Parts Scanalyzed 2 | . . . . . . 2 . . . Part Schematics Acquired 2 | . . . . . . 2 . . . Parts Damaged . | . . . . . . . . . . Bothacking | -11 -10 -9 -9 -9 -8 -8 -8 -8 -8 ------------ Run | Yrd Mat Mat Min Exi Min Mat Gar Mat Gar Used RIF Installer 1 | . . . . . . . 1 . . Robots Hacked 4 | . . . . . . . . 4 . Non-combat . | . . . . . . . . . . Combat 4 | . . . . . . . . 4 . Robot Hacks Applied 4 | . . . . . . . . 4 . overwrite_iff 1 | . . . . . . . . 1 . formatsys_high 3 | . . . . . . . . 3 . Relay Couplers Released 14 | . . . . . . . 9 . 5 Machine Destruction 14 | . . . . . . . 9 . 5 Attached 3 | . . . . . . . . 3 . Fabnet Peak Effective % . | . . . . . . . . . . Robots Rewired . | . . . . . . . . . . Allies Hacked . | . . . . . . . . . . Hacks Repelled . | . . . . . . . . . . Allies | -11 -10 -9 -9 -9 -8 -8 -8 -8 -8 -------- Run | Yrd Mat Mat Min Exi Min Mat Gar Mat Gar Total Allies 4 | . . . . . . . . 4 . Largest Group 2 | . . . . . . . . 2 . Highest-Rated Group 31 | . . . . . . . . 31 . Highest-Rated Ally 16 | . . . . . . . . 16 . Total Orders . | . . . . . . . . . . Ally Attacks 25 | . . . . . . . . 25 . Total Damage 286 | . . . . . . . . 286 . Kills 5 | . . . . . . . . 5 . Allies Corrupted . | . . . . . . . . . . Allies Melted . | . . . . . . . . . . Intel | -11 -10 -9 -9 -9 -8 -8 -8 -8 -8 ------- Run | Yrd Mat Mat Min Exi Min Mat Gar Mat Gar Active Infowar (turns) 1104 | . . . . . . . 324 780 . Seismic 1104 | . . . . . . . 324 780 . Robot Analysis Total . | . . . . . . . . . . Derelict Logs Recovered 1 | . . . 1 . . . . . . Drone Launches . | . . . . . . . . . . Drone Recoveries . | . . . . . . . . . . Exploration | -11 -10 -9 -9 -9 -8 -8 -8 -8 -8 ------------- Run | Yrd Mat Mat Min Exi Min Mat Gar Mat Gar Turns Passed 6871 | 70 1301 1148 327 321 262 1541 545 1196 160 Spaces Moved 3100 | 39 690 424 203 198 170 721 247 354 54 Core 4 | 4 . . . . . . . . . Treads 1296 | 35 109 184 203 198 18 . 141 354 54 Legs 821 | . 581 240 . . . . . . . Wheels 979 | . . . . . 152 721 106 . . Hover . | . . . . . . . . . . Flight . | . . . . . . . . . . Fastest Speed 50 | 50 120 120 160 160 95 137 150 200 200 Average Speed 165 | 148 158 190 160 160 102 150 179 200 200 Slowest Speed 240 | 160 190 240 160 160 160 185 200 200 200 Overloaded Moves . | . . . . . . . . . . Propulsion Burnouts . | . . . . . . . . . . Robots Hopped . | . . . . . . . . . . Potential Cave-ins . | . . . . . . . . . . Cave-ins Triggered . | . . . . . . . . . . Exploration Rate (%) 42 | 3 89 38 42 57 41 67 40 37 11 Regions Visited 9 Branch Regions 3 Pre-discovered Areas 3 | . 1 1 . 1 . . . . . Known Exits Taken 3 | . . 1 . . . 1 . 1 . Unknown Exits Taken 5 | 1 1 . 1 1 1 . . . . Scrap Searched 1 | . . . 1 . . . . . . Spaces Dug 1 | . . . . . . . . 1 . Terrain Destroyed 18 | . . . . . . . 17 1 . Melee 1 | . . . . . . . . 1 . Projectile . | . . . . . . . . . . AOE 17 | . . . . . . . 17 . . Terrain Rammed . | . . . . . . . . . . Walls Destroyed . | . . . . . . . . . . Machines Disabled . | . . . . . . . . . . Actions | -11 -10 -9 -9 -9 -8 -8 -8 -8 -8 --------- Run | Yrd Mat Mat Min Exi Min Mat Gar Mat Gar Total 4232 | 48 796 597 206 204 223 1006 315 757 80 Wait 518 | . 20 30 . . 22 137 12 297 . Move 3092 | 38 689 423 202 197 169 721 245 354 54 Hop . | . . . . . . . . . . Pick Up 95 | 4 14 26 2 1 4 27 6 10 1 Fast Attach 32 | 6 4 5 . . 4 7 2 4 . Attach 33 | . 4 8 . . . 7 6 3 5 Detach 2 | . . . . . . 2 . . . Swap 36 | . 1 2 . 2 . 9 3 18 1 Drop 77 | . 3 17 2 4 7 15 13 16 . Fire 237 | . 56 86 . . 17 76 2 . . Melee 91 | . . . . . . 5 20 53 13 Ram . | . . . . . . . . . . Kick 3 | . 3 . . . . . . . . Crush 2 | . 2 . . . . . . . . Escape Stasis 12 | . . . . . . . 6 . 6 Rewire 2 | . . . . . . . . 2 . Trap . | . . . . . . . . . . Miscellaneous . | . . . . . . . . . . Route ------- -11/Scrapyard -10/Materials (discovered 5 exits: *Mat x3 / [*Min x2]) -9/Materials (discovered 2 exits: *Mat / *Min) -9/Mines -9/Exiles -8/Mines -8/Materials (discovered 2 exits: [*Fac] / Gar) -8/Garrison -8/Materials (discovered 2 exits: [*Fac] / Gar) -8/Garrison History --------- Turn | Location | Event 3 | -11/Scrapyard | Discovered new exit (range 15) 71 | -11/Scrapyard | Entered Materials 305 | -10/Materials | Build established: Mutant 339 | -10/Materials | Core integrity fell below 50% 384 | -10/Materials | Discovered new exit (range 16) 450 | -10/Materials | Discovered new exit (range 10) 620 | -10/Materials | Discovered new exit (range 8) 673 | -10/Materials | Discovered new exit (range 12) 973 | -10/Materials | Discovered new exit (range 5) 1372 | -10/Materials | Entered another Materials area 1372 | -9/Materials | Evolved 2 slots: Propulsion x1, Weapon x1 1620 | -9/Materials | Lost 3 parts (1n2w) 1864 | -9/Materials | Discovered new exit (range 5) 1974 | -9/Materials | Identified exit to Mines 2058 | -9/Materials | Build established: Tank 2388 | -9/Materials | Build established: Scavenger-Tank 2520 | -9/Materials | Entered Mines 2527 | -9/Mines | Received a Rocket Launcher from a helpful Derelict 2752 | -9/Mines | Learned Materials stockpile data 2839 | -9/Mines | Deemed a non-threat by the Exiles lab entrance 2839 | -9/Mines | Discovered new exit (range 5) 2847 | -9/Mines | Entered Exiles 2884 | -9/Exiles | Met 8R-AWN 2915 | -9/Exiles | Met EX-HEX 3022 | -9/Exiles | Met EX-BIN 3044 | -9/Exiles | Met EX-DEC 3054 | -9/Exiles | Learned location of Zion (-6) 3155 | -9/Exiles | Discovered new exit (range 10) 3168 | -9/Exiles | Entered Mines 3193 | -8/Mines | Core integrity fell below 50% 3424 | -8/Mines | Discovered new exit (range 5) 3430 | -8/Mines | Entered Materials 3430 | -8/Materials | Evolved 2 slots: Propulsion x1, Utility x1 4025 | -8/Materials | Build established: Hauler-Tank 4499 | -8/Materials | Discovered new exit (range 4) 4714 | -8/Materials | Garrison activated, responded to threat 4971 | -8/Materials | Identified exit to Garrison 4971 | -8/Materials | Entered Garrison 4986 | -8/Garrison | Installed Relay Interface Framework 5023 | -8/Garrison | Triggered checkpoint 5067 | -8/Garrison | Garrison Relay disabled 5257 | -8/Garrison | Triggered checkpoint 5347 | -8/Garrison | Discovered new exit (range 10) 5395 | -8/Garrison | Triggered checkpoint 5432 | -8/Garrison | Garrison Relay disabled 5467 | -8/Garrison | Build established: Scavenger-Mutant 5516 | -8/Garrison | Entered Materials 6168 | -8/Materials | Discovered new exit (range 15) 6590 | -8/Materials | Core integrity fell below 50% 6712 | -8/Materials | Identified exit to Garrison 6712 | -8/Materials | Entered Garrison 6790 | -8/Garrison | Triggered checkpoint 6820 | -8/Garrison | Garrison Relay disabled 6865 | -8/Garrison | System corruption reached 10% 6870 | -8/Garrison | Core integrity fell below 20% 6872 | -8/Garrison | Self-destructed Last Messages --------------- 06840_ System corrupted: Heat flow error (+200). 06841_ P-60 Hacker knocked back. 06852_ Katana follow-up attack on P-60 Hacker. 06853_ Med. Armor Plating destroyed. 06855_ Lgt. Ion Engine destroyed. 06856_ Katana follow-up attack on P-60 Hacker. 06858_ Hvy. Mace destroyed. 06860_ Katana follow-up attack on P-60 Hacker. 06863_ Axe follow-up attack on P-60 Hacker. 06866_ P-60 Hacker Shock Rifle severed. 06866_ Axe follow-up attack on P-60 Hacker. 06866_ Destroyed Gravmag System. 06866_ Katana follow-up attack on P-60 Hacker. 06866_ P-60 Hacker Imp. Heat Sink severed. 06869_ Lgt. Treads+ destroyed. 06869_ Axe follow-up attack on P-60 Hacker. 06870_ P-60 Hacker resets P-60 Hacker, system corruption cleaned. 06871_ Lgt. Treads+ destroyed. 06872_ Med. Armor Plating destroyed. Map ----- +----------------------------------------------------+ | | | | | | | | | | | | | | | ?????????????????????????????????????????????????? | | ?????????????????????????????????????????????????? | | ?????????????????????????????????????????????????? | | ?????????????????????????????????????????????????? | | ?????????????????????????????????????????????????? | | ?????????????????????????????????????????????????? | | ?????????????????????????????????????????????????? | | ?????????????????????????????????????????????????? | | ?????????????????????????????????????????????????? | | ?????????????????????????????????????????????????? | | ?#####???????????????????????????????????????????? | | ?# #???????????????????????????????????????????? | | ?# #???????????????????????????????????????????? | | ?# #???????????????????????????????????????????? | | ?# #???????#####??#######??????????????????????? | | ?# #???????# #??# ! ""#??????????????????????? | | ?# #??###### #####!! ###?????????????????????? | | ?# #??# ! #?????????????????????? | | ?# #??# p ^ ^ @!#?????????????????????? | | ?# #??# ##############/p#?????????????????????? | | ?# #??# #????????????# p#?????????????????????? | | ?# #### ##########???##+#?????????????????????? | | ## ?? #?????????????????????? | | ## ???#?????????????????????? | | ?????????????????????????? | | ########################?????????????????????????? | | ?????????????????????????????????????????????????? | | ?????????????????????????????????????????????????? | | ?????????????????????????????????????????????????? | | ?????????????????????????????????????????????????? | | ?????????????????????????????????????????????????? | | ?????????????????????????????????????????????????? | | ?????????????????????????????????????????????????? | | ?????????????????????????????????????????????????? | | ?????????????????????????????????????????????????? | | ?????????????????????????????????????????????????? | | ?????????????????????????????????????????????????? | | ?????????????????????????????????????????????????? | | ?????????????????????????????????????????????????? | | ?????????????????????????????????????????????????? | | ?????????????????????????????????????????????????? | | ?????????????????????????????????????????????????? | | ?????????????????????????????????????????????????? | +----------------------------------------------------+ Best States ------------- Heat Dissipation 31 Energy Generation 14 Energy Capacity 250 Matter Stores 300 Matter Capacity 300 Sight Range 16 Terrain Scan Density 10 Armor Coverage 225 Evasion (%) 55 Recoil Reduction 4 Relay Coupler Types 2 Relay Coupler Value 32 Item Schematics ----------------- Cargo Storage Unit | -10/Materials | Hacked Huge Storage Unit | -10/Materials | Hacked Humpback | -8/Materials | Scanalyzed Lgt. Treads | -8/Materials | Scanalyzed Robot Schematics ------------------ None Fabricated ------------ Nothing Repaired ---------- Nothing Studied --------- Wheel | -8/Materials | Hacked Lgt. Treads | -8/Materials | Hacked Alien Tech Used ----------------- None Achievements -------------- None Challenges ------------ None Game ------ Seed BombardmentGodTearclaws Manual? 0 Play Time 00:31:45 Cumulative 591.7 hours Start 2026.09.05 @ 02:28:19 End 2026.09.05 @ 03:07:01 Sessions 1 Manual Loads 0 Difficulty Rogue Special Mode None Game No. 494 Rogue 494 Adventurer 0 Explorer 0 Win Type - Total 19 Types 11/0/3/1/0/0/0/2/0/2 Lore% 69 Gallery% 72 Achievement% 69 Wizard Run 0 Options --------- Layout 1 ASCII 0 Keyboard 0 Movement Mouse Keybinds 0 Fullscreen 2 Font 24/Cog Map View 25x17 Zoom Use 26% Tactical HUD 1 Map Filters NONE Filters NONE Steam 1 RUN: 809d47cb-ed90-4f50-b52e-6d09d068ff48